lending/lending_fUSD_20250819
["ID","MTS","AMOUNT","RATE_DAILY","PERIOD"]
[380273810,1755630910578,-400.0,0.00024917,30]
[380273811,1755630910656,-400.0,0.00024917,30]
[380273812,1755630910733,-400.0,0.00024917,30]
[380273813,1755630910813,-1171.85,0.00024917,30]
[380273814,1755630910891,-400.0,0.00024917,30]
[380273815,1755630910969,-400.0,0.00024917,30]
[380273816,1755630911048,-1032.99,0.00024917,30]
[380273817,1755630911127,-2003.39,0.00024917,30]
[380273818,1755630911207,-1115.27,0.00024917,30]
[380273819,1755630911285,-400.0,0.00024917,30]
[380273820,1755630911363,-400.0,0.00024917,30]
[380273821,1755630911443,-400.0,0.00024917,30]
[380273822,1755630911523,-400.0,0.00024917,30]
[380273823,1755630911599,-1093.1,0.00024917,30]
[380273824,1755630911675,-727.99,0.00024917,30]
[380273825,1755630911754,-1683.21,0.00024917,30]
[380273826,1755630911829,-690.52,0.00024917,30]
[380273827,1755630911904,-721.89,0.00024917,30]
[380273828,1755630911980,-400.0,0.00024917,30]
[380273829,1755630912057,-1864.55,0.00024917,30]
[380273830,1755630912134,-400.0,0.00024917,30]
[380273831,1755630912213,-933.6,0.00024917,30]
[380273832,1755630912290,-1540.32,0.00024917,30]
[380273833,1755630912365,-400.0,0.00024917,30]
[380273834,1755630912442,-667.4,0.00024917,30]
[380273835,1755630912518,-1549.09,0.00024917,30]
[380273836,1755630912592,-1945.59,0.00024917,30]
[380273837,1755630912665,-400.0,0.00024917,30]
[380273838,1755630912757,-447.13,0.00024917,30]
[380273839,1755630912842,-400.0,0.00024917,30]
[380273840,1755630912917,-400.0,0.00024917,30]
[380273841,1755630912991,-834.9,0.00024917,30]
[380273842,1755630913068,-1543.97,0.00024917,30]
[380273843,1755630913144,-2463.0,0.00024917,30]
[380273844,1755630913219,-2651.29,0.00024917,30]
[380273845,1755630913295,-400.0,0.00024917,30]
[380273846,1755630913371,-1180.21,0.00024917,30]
[380273847,1755630913447,-400.0,0.00024917,30]
[380273848,1755630913523,-2251.53,0.00024917,30]
[380273849,1755630913598,-400.0,0.00024917,30]
[380273850,1755630913672,-632.7,0.00024917,30]
[380273851,1755630913748,-1354.08,0.00024917,30]
[380273852,1755630913823,-476.92,0.00024917,30]
[380273853,1755630913898,-400.0,0.00024917,30]
[380273854,1755630913972,-1498.84,0.00024917,30]
[380273855,1755630914057,-400.0,0.00024917,30]
[380273856,1755630914138,-1067.22,0.00024917,30]
[380273857,1755630914217,-1077.46,0.00024917,30]
[380273858,1755630914295,-893.12,0.00024917,30]
[380273859,1755630914381,-400.0,0.00024917,30]
[380273860,1755630914464,-400.0,0.00024917,30]
[380273861,1755630914546,-994.07,0.00024917,30]
[380273862,1755630914624,-555.34,0.00024917,30]
[380273863,1755630914701,-400.0,0.00024917,30]
[380273864,1755630914780,-919.17,0.00024917,30]
[380273865,1755630914859,-1190.15,0.00024917,30]
[380273866,1755630914937,-400.0,0.00024917,30]
[380273867,1755630915014,-400.0,0.00024917,30]
[380273868,1755630915091,-1711.77,0.00024917,30]
[380273869,1755630915170,-624.5,0.00024917,30]
[380273870,1755630915251,-1019.51,0.00024917,30]
[380273871,1755630915329,-400.0,0.00024917,30]
[380273872,1755630915405,-477.1,0.00024917,30]
[380273873,1755630915482,-1145.45,0.00024917,30]
[380273874,1755630915561,-1865.24,0.00024917,30]
[380273875,1755630915646,-947.97,0.00024917,30]
[380273876,1755630915725,-503.59,0.00024917,30]
[380273877,1755630915805,-400.0,0.00024917,30]
[380273878,1755630915884,-851.26,0.00024917,30]
[380273879,1755630915961,-400.0,0.00024917,30]
[380273880,1755630916041,-400.0,0.00024917,30]
[380273881,1755630916122,-437.88,0.00024917,30]
[380273882,1755630916204,-1607.24,0.00024917,30]
[380273883,1755630916286,-400.0,0.00024917,30]
[380273884,1755630916365,-400.0,0.00024917,30]
[380273885,1755630916447,-482.8,0.00024917,30]
[380273886,1755630916528,-400.0,0.00024917,30]
[380273887,1755630916605,-1765.89,0.00024917,30]
[380273888,1755630916682,-1008.25,0.00024917,30]
[380273889,1755630916758,-400.0,0.00024917,30]
[380273890,1755630916836,-556.2,0.00024917,30]
[380273891,1755630916913,-400.0,0.00024917,30]
[380273892,1755630916991,-411.04,0.00024917,30]
[380273893,1755630917071,-438.9,0.00024917,30]
[380273894,1755630917160,-400.0,0.00024917,30]
[380273895,1755630917242,-400.0,0.00024917,30]
[380273896,1755630917322,-2238.16,0.00024917,30]
[380273897,1755630917402,-400.0,0.00024917,30]
[380273898,1755630917481,-400.0,0.00024917,30]
[380273899,1755630917560,-400.0,0.00024917,30]
[380273900,1755630917638,-584.89,0.00024917,30]
[380273901,1755630917718,-698.53,0.00024917,30]
[380273902,1755630917796,-605.66,0.00024917,30]
[380273903,1755630917874,-400.0,0.00024917,30]
[380273904,1755630917953,-400.0,0.00024917,30]
[380273905,1755630918033,-400.0,0.00024917,30]
[380273906,1755630918113,-461.41,0.00024917,30]
[380273907,1755630918595,-1632.1,0.00024917,30]
[380273908,1755630918702,-579.14,0.00024917,30]
[380273909,1755630918785,-1023.1,0.00024917,30]
[380273910,1755630918863,-2074.73,0.00024917,30]
[380273911,1755630918943,-596.89,0.00024917,30]
[380273912,1755630919021,-400.0,0.00024917,30]
[380273913,1755630919101,-400.0,0.00024917,30]
[380273914,1755630919180,-400.0,0.00024917,30]
[380273915,1755630919261,-400.0,0.00024917,30]
[380273916,1755630919337,-400.0,0.00024917,30]
[380273917,1755630919414,-773.53,0.00024917,30]
[380273918,1755630919496,-1825.28,0.00024917,30]
[380273919,1755630919574,-1523.06,0.00024917,30]
[380273920,1755630919651,-400.0,0.00024917,30]
[380273921,1755630919730,-2716.46,0.00024917,30]
[380273922,1755630919807,-400.0,0.00024917,30]
[380273923,1755630919884,-400.0,0.00024917,30]
[380273924,1755630919958,-408.97,0.00024917,30]
[380273925,1755630920033,-400.0,0.00024917,30]
[380273926,1755630920112,-1571.86,0.00024917,30]
[380273927,1755630920193,-403.44,0.00024917,30]
[380273928,1755630920272,-400.0,0.00024917,30]
[380273929,1755630920350,-328.28772807,0.00024917,30]
[380273930,1755630920430,-2094.77,0.00024917,30]
[380273931,1755630920506,-400.0,0.00024917,30]
[380273932,1755630920584,-400.0,0.00024917,30]
[380273933,1755630920661,-445.03,0.00024917,30]
[380273934,1755630920737,-400.0,0.00024917,30]
[380273935,1755630920814,-1358.16,0.00024917,30]
[380273936,1755630920890,-410.03,0.00024917,30]
[380273937,1755630920966,-2348.69,0.00024917,30]
[380273938,1755630921045,-1179.36,0.00024917,30]
[380273939,1755630921123,-506.52,0.00024917,30]
[380273940,1755630921201,-400.0,0.00024917,30]
[380273941,1755630921279,-657.8,0.00024917,30]
[380273942,1755630921358,-1821.21,0.00024917,30]
[380273943,1755630921434,-400.0,0.00024917,30]
[380273944,1755630921511,-590.84,0.00024917,30]
[380273945,1755630921588,-912.76,0.00024917,30]
[380273946,1755630921664,-400.0,0.00024917,30]
[380273947,1755630921739,-1223.73,0.00024917,30]
[380273948,1755630921816,-400.0,0.00024917,30]
[380273949,1755630921892,-1766.94,0.00024917,30]
[380273950,1755630921966,-2098.13,0.00024917,30]
[380273951,1755630922045,-400.0,0.00024917,30]
[380273952,1755630922123,-964.55,0.00024917,30]
[380273953,1755630922206,-907.48,0.00024917,30]
[380273954,1755630922291,-400.0,0.00024917,30]
[380273955,1755630922371,-1038.22,0.00024917,30]
[380273956,1755630922449,-400.0,0.00024917,30]
[380273957,1755630922526,-500.04,0.00024917,30]
[380273958,1755630922601,-400.0,0.00024917,30]
[380273959,1755630922674,-3192.48,0.00024917,30]
[380273960,1755630922751,-2133.63,0.00024917,30]
[380273961,1755630922831,-1673.85,0.00024917,30]
[380273962,1755630922911,-406.02,0.00024917,30]
[380273963,1755630922988,-3254.26,0.00024917,30]
[380273964,1755630923067,-400.0,0.00024917,30]
[380273965,1755630923144,-960.18,0.00024917,30]
[380273966,1755630923221,-594.4,0.00024917,30]
[380273967,1755630923299,-1003.4,0.00024917,30]
[380273968,1755630923377,-416.9,0.00024917,30]
[380273969,1755630923454,-479.67,0.00024917,30]
[380273970,1755630923530,-2104.94,0.00024917,30]
[380273971,1755630923606,-1658.41,0.00024917,30]
[380273972,1755630923679,-400.0,0.00024917,30]
[380273973,1755630923755,-672.86,0.00024917,30]
[380273974,1755630923830,-400.0,0.00024917,30]
[380273975,1755630923906,-400.0,0.00024917,30]
[380273976,1755630923981,-1715.1,0.00024917,30]
[380273977,1755630924060,-400.0,0.00024917,30]
[380273978,1755630924140,-400.0,0.00024917,30]
[380273979,1755630924222,-775.68,0.00024917,30]
[380273980,1755630924304,-933.05,0.00024917,30]
[380273981,1755630924383,-503.65,0.00024917,30]
[380273982,1755630924463,-930.59,0.00024917,30]
[380273983,1755630924542,-400.0,0.00024917,30]
[380273984,1755630924620,-400.0,0.00024917,30]
[380273985,1755630924697,-1249.51,0.00024917,30]
[380273986,1755630924777,-400.0,0.00024917,30]
[380273987,1755630924856,-2775.35,0.00024917,30]
[380273988,1755630924935,-976.92,0.00024917,30]
[380273989,1755630925013,-400.0,0.00024917,30]
[380273990,1755630925092,-557.23,0.00024917,30]
[380273991,1755630925171,-668.31,0.00024917,30]
[380273992,1755630925252,-745.22,0.00024917,30]
[380273993,1755630925332,-503.04,0.00024917,30]
[380273994,1755630925409,-804.51,0.00024917,30]
[380273995,1755630925488,-400.0,0.00024917,30]
[380273996,1755630925566,-400.0,0.00024917,30]
[380273997,1755630925644,-381.0247202,0.00024917,30]
[380273998,1755630925722,-466.38,0.00024917,30]
[380273999,1755630925798,-1250.28,0.00024917,30]
[380274000,1755630925874,-2981.31,0.00024917,30]
[380274001,1755630925951,-1112.61,0.00024917,30]
[380274002,1755630926029,-866.17,0.00024917,30]
[380274003,1755630926108,-1994.95,0.00024917,30]
[380274004,1755630926191,-664.23,0.00024917,30]
[380274005,1755630926272,-400.0,0.00024917,30]
[380274006,1755630926354,-410.99,0.00024917,30]
[380274007,1755630926432,-2158.15,0.00024917,30]
[380274008,1755630926511,-509.99,0.00024917,30]
[380274009,1755630926586,-481.8,0.00024917,30]
[380274010,1755630926662,-400.0,0.00024917,30]
[380274011,1755630926737,-400.0,0.00024917,30]
[380274012,1755630926814,-1813.31,0.00024917,30]
[380274013,1755630926889,-400.0,0.00024917,30]
[380274014,1755630926967,-400.0,0.00024917,30]
[380274015,1755630927044,-400.0,0.00024917,30]
[380274016,1755630927126,-467.36,0.00024917,30]
[380274017,1755630927202,-400.0,0.00024917,30]
[380274018,1755630927280,-413.19,0.00024917,30]
[380274019,1755630927357,-400.0,0.00024917,30]
[380274020,1755630927436,-1750.63,0.00024917,30]
[380274021,1755630927513,-400.0,0.00024917,30]
[380274022,1755630927591,-855.55,0.00024917,30]
[380274023,1755630927935,-601.39,0.00024917,30]
[380274024,1755630928017,-400.0,0.00024917,30]
[380274025,1755630928097,-2280.39,0.00024917,30]
[380274026,1755630928176,-2862.7,0.00024917,30]
[380274027,1755630928257,-1314.81,0.00024917,30]
[380274028,1755630928337,-975.51,0.00024917,30]
[380274029,1755630928416,-400.0,0.00024917,30]
[380274030,1755630928495,-400.0,0.00024917,30]
[380274031,1755630928572,-2207.52,0.00024917,30]
[380274032,1755630928649,-1840.1,0.00024917,30]
[380274033,1755630928728,-2643.18,0.00024917,30]
[380274034,1755630928806,-400.0,0.00024917,30]
[380274035,1755630928884,-1472.7,0.00024917,30]
[380274036,1755630928963,-517.95,0.00024917,30]
[380274037,1755630929044,-400.0,0.00024917,30]
[380274038,1755630929125,-1486.54,0.00024917,30]
[380274039,1755630929205,-2077.7,0.00024917,30]
[380274040,1755630929285,-400.0,0.00024917,30]
[380274041,1755630929366,-3186.14,0.00024917,30]
[380274042,1755630929447,-2093.14,0.00024917,30]
[380274043,1755630929526,-3535.78,0.00024917,30]
[380274044,1755630929604,-400.0,0.00024917,30]
[380274045,1755630929682,-790.95,0.00024917,30]
[380274046,1755630929758,-2875.96,0.00024917,30]
[380274047,1755630929834,-593.85,0.00024917,30]
[380274048,1755630929911,-1801.97,0.00024917,30]
[380274049,1755630929988,-691.08,0.00024917,30]
[380274050,1755630930064,-513.43544915,0.00024917,30]
[380274051,1755630930142,-962.38,0.00024917,30]
[380274052,1755630930221,-1485.42,0.00024917,30]
[380274053,1755630930300,-400.0,0.00024917,30]
[380274054,1755630930377,-400.0,0.00024917,30]
[380274055,1755630930456,-1374.41,0.00024917,30]
[380274056,1755630930533,-400.0,0.00024917,30]
[380274057,1755630930609,-642.48,0.00024917,30]
[380274058,1755630930686,-469.18430115,0.00024917,30]
[380274059,1755630930765,-2227.75,0.00024917,30]
[380274060,1755630930842,-400.0,0.00024917,30]
[380274061,1755630930923,-400.0,0.00024917,30]
[380274062,1755630930998,-1008.89,0.00024917,30]
[380274063,1755630931077,-935.31,0.00024917,30]
[380274064,1755630931156,-400.0,0.00024917,30]
[380274065,1755630931249,-734.31,0.00024917,30]
[380274066,1755630931342,-760.31,0.00024917,30]
[380274067,1755630931421,-543.43,0.00024917,30]
[380274068,1755630931498,-400.0,0.00024917,30]
[380274069,1755630931574,-588.82,0.00024917,30]
[380274070,1755630931648,-498.35,0.00024917,30]
[380274071,1755630931728,-400.0,0.00024917,30]
[380274072,1755630931804,-1235.39,0.00024917,30]
[380274073,1755630931881,-1209.49,0.00024917,30]
[380274074,1755630931958,-400.0,0.00024917,30]
[380274075,1755630932034,-400.0,0.00024917,30]
[380274076,1755630932108,-1853.54,0.00024917,30]
[380274077,1755630932185,-818.2,0.00024917,30]
[380274078,1755630932262,-1158.12,0.00024917,30]
[380274079,1755630932340,-845.97,0.00024917,30]
[380274080,1755630932417,-1453.42,0.00024917,30]
[380274081,1755630932492,-1268.36,0.00024917,30]
[380274082,1755630932569,-400.0,0.00024917,30]
[380274083,1755630932645,-1608.12,0.00024917,30]
[380274084,1755630932724,-838.71,0.00024917,30]
[380274085,1755630932802,-2072.48,0.00024917,30]
[380274086,1755630932877,-400.0,0.00024917,30]
[380274087,1755630932954,-2234.05,0.00024917,30]
[380274088,1755630933031,-553.19,0.00024917,30]
[380274089,1755630933110,-2377.86,0.00024917,30]
[380274090,1755630933189,-656.71,0.00024917,30]
[380274091,1755630933266,-1003.6,0.00024917,30]
[380274092,1755630933345,-491.09,0.00024917,30]
[380274093,1755630933424,-575.64,0.00024917,30]
[380274094,1755630933501,-890.27,0.00024917,30]
[380274095,1755630933578,-2729.75,0.00024917,30]
[380274096,1755630933654,-400.0,0.00024917,30]
[380274097,1755630933734,-400.0,0.00024917,30]
[380274098,1755630933811,-400.0,0.00024917,30]
[380274099,1755630933889,-887.1,0.00024917,30]
[380274100,1755630933966,-1586.0,0.00024917,30]
[380274101,1755630934045,-400.0,0.00024917,30]
[380274102,1755630934124,-400.0,0.00024917,30]
[380274103,1755630934204,-468.86,0.00024917,30]
[380274104,1755630934288,-400.0,0.00024917,30]
[380274105,1755630934372,-2791.41,0.00024917,30]
[380274106,1755630934450,-665.78,0.00024917,30]
[380274107,1755630934532,-150.0,0.00024917,30]
[380274108,1755630934614,-1245.26,0.00024917,30]
[380274109,1755630934693,-1677.64,0.00024917,30]
[380274110,1755630934775,-3451.63,0.00024917,30]
[380274111,1755630934851,-400.0,0.00024917,30]
[380274112,1755630934929,-1183.6,0.00024917,30]
[380274113,1755630935009,-400.0,0.00024917,30]
[380274114,1755630935089,-1571.68,0.00024917,30]
[380274115,1755630935168,-400.0,0.00024917,30]
[380274116,1755630935247,-400.0,0.00024917,30]
[380274117,1755630935326,-400.0,0.00024917,30]
[380274118,1755630935404,-1005.04,0.00024917,30]
[380274119,1755630935481,-400.0,0.00024917,30]
[380274120,1755630935560,-734.99,0.00024917,30]
[380274121,1755630935637,-1550.01,0.00024917,30]
[380274122,1755630935717,-1852.19,0.00024917,30]
[380274123,1755630935796,-3306.45,0.00024917,30]
[380274124,1755630935874,-2734.83,0.00024917,30]
[380274125,1755630935950,-953.11,0.00024917,30]
[380274126,1755630936029,-1981.94,0.00024917,30]
[380274127,1755630936108,-553.29,0.00024917,30]
[380274128,1755630936188,-486.58,0.00024917,30]
[380274129,1755630936286,-400.0,0.00024917,30]
[380274130,1755630936386,-987.13,0.00024917,30]
[380274131,1755630936465,-713.66,0.00024917,30]
[380274132,1755630936545,-1769.53,0.00024917,30]
[380274133,1755630936623,-1151.9,0.00024917,30]
[380274134,1755630936698,-2191.01,0.00024917,30]
[380274135,1755630936775,-1484.23,0.00024917,30]
[380274136,1755630936851,-1462.98,0.00024917,30]
[380274137,1755630936926,-400.0,0.00024917,30]
[380274138,1755630937000,-400.0,0.00024917,30]
[380274139,1755630937427,-1594.1,0.00024917,30]
[380274140,1755630937501,-584.29,0.00024917,30]
[380274141,1755630937577,-1595.91,0.00024917,30]
[380274142,1755630937656,-400.0,0.00024917,30]
[380274143,1755630937735,-400.0,0.00024917,30]
[380274144,1755630937813,-400.0,0.00024917,30]
[380274145,1755630937889,-1455.26,0.00024917,30]
[380274146,1755630937966,-3407.34,0.00024917,30]
[380274147,1755630938043,-1790.8,0.00024917,30]
[380274148,1755630938125,-1524.7,0.00024917,30]
[380274149,1755630938205,-2909.2,0.00024917,30]
[380274150,1755630938285,-644.07,0.00024917,30]
[380274151,1755630938363,-1873.68,0.00024917,30]
[380274152,1755630938438,-400.0,0.00024917,30]
[380274153,1755630938514,-1158.18,0.00024917,30]
[380274154,1755630938590,-400.0,0.00024917,30]
[380274155,1755630938665,-400.0,0.00024917,30]
[380274156,1755630938741,-3025.09,0.00024917,30]
[380274157,1755630938817,-2938.04,0.00024917,30]
[380274158,1755630938894,-1809.01,0.00024917,30]
[380274159,1755630938972,-400.0,0.00024917,30]
[380274160,1755630939050,-2010.96,0.00024917,30]
[380274161,1755630939128,-2130.28,0.00024917,30]
[380274162,1755630939205,-846.47,0.00024917,30]
[380274163,1755630939285,-4782.04,0.00024917,30]
[380274164,1755630939366,-490.99,0.00024917,30]
[380274165,1755630939449,-1217.18,0.00024917,30]
[380274166,1755630939528,-400.0,0.00024917,30]
[380274167,1755630939604,-400.0,0.00024917,30]
[380274168,1755630939685,-928.72,0.00024917,30]
[380274169,1755630939761,-400.0,0.00024917,30]
[380274170,1755630939839,-1675.25,0.00024917,30]
[380274171,1755630939914,-1922.59,0.00024917,30]
[380274172,1755630939990,-1996.2,0.00024917,30]
[380274173,1755630940069,-400.0,0.00024917,30]
[380274174,1755630940150,-3257.29,0.00024917,30]
[380274175,1755630940231,-593.75,0.00024917,30]
[380274176,1755630940310,-861.27,0.00024917,30]
[380274177,1755630940389,-400.0,0.00024917,30]
[380274178,1755630940467,-1189.14,0.00024917,30]
[380274179,1755630940546,-400.0,0.00024917,30]
[380274180,1755630940624,-422.52,0.00024917,30]
[380274181,1755630940704,-400.0,0.00024917,30]
[380274182,1755630940792,-1492.14,0.00024917,30]
[380274183,1755630940872,-400.0,0.00024917,30]
[380274184,1755630940949,-1658.3,0.00024917,30]
[380274185,1755630941029,-3001.12,0.00024917,30]
[380274186,1755630941107,-831.55,0.00024917,30]
[380274187,1755630941189,-1042.89,0.00024917,30]
[380274188,1755630941268,-712.93,0.00024917,30]
[380274189,1755630941347,-801.03,0.00024917,30]
[380274190,1755630941427,-3777.75,0.00024917,30]
[380274191,1755630941504,-1627.46,0.00024917,30]
[380274192,1755630941580,-338.46210563,0.00024917,30]
[380274193,1755630941657,-669.09,0.00024917,30]
[380274194,1755630941733,-2229.74,0.00024917,30]
[380274195,1755630941812,-400.0,0.00024917,30]
[380274196,1755630941888,-2223.29,0.00024917,30]
[380274197,1755630941966,-2157.52,0.00024917,30]
[380274198,1755630942045,-400.0,0.00024917,30]
[380274199,1755630942126,-2318.08,0.00024917,30]
[380274200,1755630942211,-400.0,0.00024917,30]
[380274201,1755630942298,-2788.58,0.00024917,30]
[380274202,1755630942384,-666.25,0.00024917,30]
[380274203,1755630942464,-739.46,0.00024917,30]
[380274204,1755630942547,-400.0,0.00024917,30]
[380274205,1755630942626,-1590.45,0.00024917,30]
[380274206,1755630942707,-1065.74,0.00024917,30]
[380274207,1755630942792,-575.07,0.00024917,30]
[380274208,1755630942870,-498.22,0.00024917,30]
[380274209,1755630942949,-400.0,0.00024917,30]
[380274210,1755630943030,-400.0,0.00024917,30]
[380274211,1755630943109,-400.0,0.00024917,30]
[380274212,1755630943187,-400.0,0.00024917,30]
[380274213,1755630943268,-6511.48,0.00024917,30]
[380274214,1755630943348,-2210.73,0.00024917,30]
[380274215,1755630943425,-2425.08,0.00024917,30]
[380274216,1755630943504,-590.81,0.00024917,30]
[380274217,1755630943579,-752.39,0.00024917,30]
[380274218,1755630943654,-463.19,0.00024917,30]
[380274219,1755630943732,-400.0,0.00024917,30]
[380274220,1755630943808,-1561.3,0.00024917,30]
[380274221,1755630943886,-1742.71,0.00024917,30]
[380274222,1755630943964,-400.0,0.00024917,30]
[380274223,1755630944045,-1227.79,0.00024917,30]
[380274224,1755630944122,-400.0,0.00024917,30]
[380274225,1755630944200,-400.0,0.00024917,30]
[380274226,1755630944279,-400.0,0.00024917,30]
[380274227,1755630944357,-944.83,0.00024917,30]
[380274228,1755630944434,-400.0,0.00024917,30]
[380274229,1755630944510,-1256.14,0.00024917,30]
[380274230,1755630944587,-2403.42,0.00024917,30]
[380274231,1755630944665,-12558.9,0.00024917,30]
[380274232,1755630944742,-400.0,0.00024917,30]
[380274233,1755630944817,-1406.06,0.00024917,30]
[380274234,1755630944895,-1252.64,0.00024917,30]
[380274235,1755630944973,-1348.48,0.00024917,30]
[380274236,1755630945053,-2108.64,0.00024917,30]
[380274237,1755630945130,-2011.64,0.00024917,30]
[380274238,1755630945210,-2694.66,0.00024917,30]
[380274239,1755630945291,-400.0,0.00024917,30]
[380274240,1755630945371,-771.77,0.00024917,30]
[380274241,1755630945450,-1676.47,0.00024917,30]
[380274242,1755630945531,-2147.28,0.00024917,30]
[380274243,1755630945609,-400.0,0.00024917,30]
[380274244,1755630945690,-400.0,0.00024917,30]
[380274245,1755630945769,-1004.69,0.00024917,30]
[380274246,1755630945848,-400.0,0.00024917,30]
[380274247,1755630945929,-400.0,0.00024917,30]
[380274248,1755630946007,-759.13,0.00024917,30]
[380274249,1755630946088,-400.0,0.00024917,30]
[380274250,1755630946170,-1766.6,0.00024917,30]
[380274251,1755630946251,-2391.14,0.00024917,30]
[380274252,1755630946332,-764.46,0.00024917,30]
[380274253,1755630946736,-2045.43,0.00024917,30]
[380274254,1755630946814,-2644.5,0.00024917,30]
[380274255,1755630946890,-1321.22,0.00024917,30]
[380274256,1755630946965,-400.0,0.00024917,30]
[380274257,1755630947042,-1028.93,0.00024917,30]
[380274258,1755630947120,-2587.83,0.00024917,30]
[380274259,1755630947198,-574.26,0.00024917,30]
[380274260,1755630947276,-400.0,0.00024917,30]
[380274261,1755630947356,-414.53,0.00024917,30]
[380274262,1755630947434,-1609.98,0.00024917,30]
[380274263,1755630947510,-1988.32,0.00024917,30]
[380274264,1755630947591,-828.08,0.00024917,30]
[380274265,1755630947668,-400.0,0.00024917,30]
[380274266,1755630947744,-402.0,0.00024917,30]
[380274267,1755630947823,-3327.81,0.00024917,30]
[380274268,1755630947906,-2274.92,0.00024917,30]
[380274269,1755630948000,-2635.88,0.00024917,30]
[380274270,1755630948081,-1675.13,0.00024917,30]
[380274271,1755630948162,-400.0,0.00024917,30]
[380274272,1755630948244,-3966.88,0.00024917,30]
[380274273,1755630948327,-208.04030924,0.00024917,30]
[380274274,1755630948419,-400.0,0.00024917,30]
[380274275,1755630948499,-633.22,0.00024917,30]
[380274276,1755630948576,-400.0,0.00024917,30]
[380274277,1755630948652,-400.0,0.00024917,30]
[380274278,1755630948732,-2597.2,0.00024917,30]
[380274279,1755630948809,-1129.6,0.00024917,30]
[380274280,1755630948887,-1454.3,0.00024917,30]
[380274281,1755630948963,-400.0,0.00024917,30]
[380274282,1755630949042,-892.58,0.00024917,30]
[380274283,1755630949121,-704.57,0.00024917,30]
[380274284,1755630949199,-1389.72,0.00024917,30]
[380274285,1755630949279,-1626.22,0.00024917,30]
[380274286,1755630949357,-400.0,0.00024917,30]
[380274287,1755630949433,-402.52,0.00024917,30]
[380274288,1755630949511,-758.46,0.00024917,30]
[380274289,1755630949586,-1948.15,0.00024917,30]
[380274290,1755630949662,-646.97,0.00024917,30]
[380274291,1755630949740,-1767.01,0.00024917,30]
[380274292,1755630949817,-2232.67,0.00024917,30]
[380274293,1755630949892,-1978.37,0.00024917,30]
[380274294,1755630949973,-1951.89,0.00024917,30]
[380274295,1755630950051,-1713.52,0.00024917,30]
[380274296,1755630950133,-988.17,0.00024917,30]
[380274297,1755630950216,-452.3,0.00024917,30]
[380274298,1755630950301,-1178.32,0.00024917,30]
[380274299,1755630950380,-400.0,0.00024917,30]
[380274300,1755630950458,-474.04,0.00024917,30]
[380274301,1755630950537,-400.0,0.00024917,30]
[380274302,1755630950614,-400.0,0.00024917,30]
[380274303,1755630950690,-2626.25,0.00024917,30]
[380274304,1755630950773,-400.0,0.00024917,30]
[380274305,1755630950852,-2345.23,0.00024917,30]
[380274306,1755630950932,-400.0,0.00024917,30]
[380274307,1755630951010,-843.54,0.00024917,30]
[380274308,1755630951089,-2199.04,0.00024917,30]
[380274309,1755630951168,-400.0,0.00024917,30]